bitfinex/quotes_BTCUSD_20220204
["timestamp","ask_amount","ask_price","bid_price","bid_amount"]
[1643981705046,0.01869454,37602.0,37597.0,0.00826]
[1643981705248,0.20847112,37618.0,37597.0,0.00826]
[1643981705249,0.81,37600.0,37598.0,2.24806]
[1643981705446,0.81,37600.0,37599.0,2.91828528]
[1643981705701,0.20141458,37600.0,37599.0,3.1070829]
[1643981705898,100.0,37611.0,37600.0,0.20141]
[1643981706102,100.0,37611.0,37601.0,1.2570829]
[1643981706402,0.00093822,37607.0,37603.0,0.34916]
[1643981706701,100.0,37611.0,37604.0,0.9579229]
[1643981706899,100.0,37611.0,37605.0,1.2581829]
[1643981707103,100.0,37611.0,37606.0,1.11818528]
[1643981707104,97.36850479,37611.0,37606.0,1.11818528]
[1643981707301,97.36850479,37611.0,37608.0,0.8590229]
[1643981707302,94.92889365,37611.0,37608.0,0.8590229]
[1643981707500,94.92889365,37611.0,37609.0,0.398009]
[1643981707501,93.92959365,37611.0,37609.0,0.398009]
[1643981707899,93.92959365,37611.0,37609.0,0.448009]
[1643981708099,93.92959365,37611.0,37610.0,0.349109]
[1643981708300,93.92959365,37611.0,37610.0,0.447994]
[1643981708500,93.92959365,37611.0,37610.0,0.652864]
[1643981709346,93.92959365,37611.0,37610.0,0.752864]
[1643981709546,93.82721365,37611.0,37610.0,0.16437608]
[1643981709944,93.82721365,37611.0,37600.0,0.00016422]
[1643981710147,93.82721365,37611.0,37598.0,0.20149954]
[1643981710148,0.349094,37609.0,37601.0,0.04906422]
[1643981710346,0.349094,37609.0,37593.0,3.40834]
[1643981710347,0.349094,37609.0,37593.0,1.90616021]
[1643981710548,0.01853454,37599.0,37595.0,0.8590229]
[1643981710748,0.21026238,37608.0,37596.0,0.34916]
[1643981710949,93.87721364,37611.0,37594.0,1.85016407]
[1643981710950,0.21026238,37610.0,37594.0,1.85016407]
[1643981711148,0.35009883,37609.0,37600.0,0.00093905]
[1643981711948,0.21026238,37608.0,37600.0,0.00093905]
[1643981712149,0.21026238,37608.0,37599.0,0.00016407]
[1643981712150,0.04999999,37605.0,37599.0,0.00016407]
[1643981712355,0.04999999,37603.0,37601.0,0.00093907]
[1643981712550,0.34916,37602.0,37594.0,0.21026238]
[1643981712750,0.01853454,37599.0,37597.0,0.00016405]
[1643981712951,0.01853454,37599.0,37595.0,0.34916]
[1643981712952,0.04999999,37598.0,37595.0,0.34916]
[1643981713195,0.01853454,37599.0,37595.0,0.34916]
[1643981713397,0.01853454,37599.0,37594.0,0.14954]
[1643981713597,0.21026238,37610.0,37595.0,1.25]
[1643981713794,0.34916,37609.0,37593.0,0.00016405]
[1643981713997,0.04999999,37598.0,37596.0,0.00016405]
[1643981714295,0.04999999,37599.0,37597.0,0.34916]
[1643981714899,0.04999999,37599.0,37595.0,0.05]
[1643981715297,0.21026238,37610.0,37596.0,0.21026238]
[1643981715501,93.82721365,37611.0,37596.0,0.21042643]
[1643981715698,93.82721365,37611.0,37597.0,0.34816]
[1643981715896,0.04999999,37612.0,37597.0,0.34832405]
[1643981716096,0.00093542,37605.0,37598.0,0.21026238]
[1643981716296,0.00093542,37605.0,37599.0,0.149492]
[1643981716500,5.42e-06,37605.0,37600.0,0.25916238]
[1643981716706,0.0906,37627.0,37601.0,0.348127]
[1643981716707,0.04999999,37626.0,37601.0,0.348127]
[1643981716971,0.0906,37627.0,37608.0,0.02174213]
[1643981717171,0.0906,37627.0,37609.0,0.41746238]
[1643981717172,0.0001,37627.0,37609.0,0.41746238]
[1643981717370,0.04999999,37633.0,37611.0,0.1573]
[1643981717573,0.7387,37642.0,37612.0,0.25916238]
[1643981717574,0.04999999,37632.0,37612.0,0.25916238]
[1643981717770,0.04999999,37632.0,37615.0,0.1573]
[1643981717969,0.04999999,37632.0,37617.0,0.349146]
[1643981718168,0.132916,37647.0,37618.0,0.25916238]
[1643981718169,0.04999999,37635.0,37618.0,0.25916238]
[1643981718373,0.04999999,37631.0,37619.0,0.305509]
[1643981718570,0.01803034,37639.0,37620.0,0.0489]
[1643981718769,0.06803033,37639.0,37620.0,0.25916238]
[1643981718970,0.06803033,37639.0,37621.0,0.349105]
[1643981719170,0.01803034,37639.0,37622.0,0.25816238]
[1643981719369,0.01803034,37639.0,37623.0,0.138188]
[1643981719370,0.04999999,37635.0,37623.0,0.138188]
[1643981719568,0.00055509,37632.0,37624.0,0.25916238]
[1643981719770,0.00055509,37632.0,37631.0,1.68490736]
[1643981719970,5.09e-06,37632.0,37631.0,1.82307936]
[1643981720171,5.09e-06,37632.0,37631.0,1.92307936]
[1643981720605,100.0,37632.0,37631.0,0.37307936]
[1643981720799,100.001,37632.0,37631.0,0.338172]
[1643981720998,100.001,37632.0,37631.0,0.37307936]
[1643981721300,100.001,37632.0,37631.0,0.338172]
[1643981721598,100.001,37632.0,37631.0,0.388172]
[1643981721999,100.001,37632.0,37631.0,0.42307936]
[1643981722201,100.001,37632.0,37631.0,0.49855936]
[1643981722803,100.001,37632.0,37631.0,1.84855936]
[1643981723406,98.27743844,37632.0,37631.0,2.50685936]
[1643981723601,97.06802882,37632.0,37631.0,2.50685936]
[1643981723799,95.91811193,37632.0,37631.0,2.90685936]
[1643981724000,95.91811193,37632.0,37631.0,3.10607336]
[1643981724200,95.91811193,37632.0,37631.0,3.1268084]
[1643981724639,95.51968293,37632.0,37631.0,3.1268084]
[1643981725040,95.37427164,37632.0,37631.0,3.1268084]
[1643981725239,94.93871514,37632.0,37631.0,3.71727336]
[1643981725444,94.63871514,37632.0,37631.0,3.71727336]
[1643981725643,94.09031214,37632.0,37631.0,3.71727336]
[1643981725839,94.00506103,37632.0,37631.0,3.7380084]
[1643981726044,80.32513822,37632.0,37631.0,3.7380084]
[1643981726243,80.32513822,37632.0,37631.0,4.25462336]
[1643981726244,68.74734141,37632.0,37631.0,4.25462336]
[1643981726440,67.34214071,37632.0,37631.0,4.2750104]
[1643981726641,67.34214071,37632.0,37631.0,9.8764114]
[1643981726642,63.53759909,37632.0,37631.0,9.8764114]
[1643981726841,52.28248222,37632.0,37631.0,10.60334105]
[1643981727041,51.4587108,37632.0,37631.0,6.85000205]
[1643981727243,50.9284088,37632.0,37631.0,4.38120005]
[1643981727441,50.9284088,37632.0,37631.0,4.12284705]
[1643981727641,50.9284088,37632.0,37631.0,4.31572705]
[1643981727642,50.46828067,37632.0,37631.0,4.31572705]
[1643981727843,49.99085867,37632.0,37631.0,6.2714394]
[1643981728103,49.99085867,37632.0,37631.0,3.5233444]
[1643981728294,49.59246967,37632.0,37631.0,3.5233444]
[1643981728492,49.59097844,37632.0,37631.0,3.5233444]
[1643981728695,49.59097844,37632.0,37631.0,2.5233444]
[1643981728894,48.36881002,37632.0,37631.0,2.5836994]
[1643981729094,48.36881002,37632.0,37631.0,8.5836994]
[1643981729095,47.5076882,37632.0,37631.0,8.5836994]
[1643981729295,47.47251093,37632.0,37631.0,10.5836994]
[1643981729495,47.07416293,37632.0,37631.0,10.4250744]
[1643981729698,47.07416293,37632.0,37631.0,9.4906754]
[1643981729898,47.07416293,37632.0,37631.0,5.8880084]
[1643981730097,47.07416293,37632.0,37631.0,4.8880084]
[1643981730397,47.07416293,37632.0,37631.0,4.26727336]
[1643981730796,47.07416293,37632.0,37631.0,4.79205072]
[1643981731195,47.07416293,37632.0,37631.0,4.13195072]
[1643981731394,47.07416293,37632.0,37631.0,4.18195072]
[1643981731595,47.05416293,37632.0,37631.0,4.34002075]
[1643981731851,47.05416293,37632.0,37631.0,4.14002075]
[1643981732046,47.05416293,37632.0,37631.0,3.397907]
[1643981732248,47.05224293,37632.0,37631.0,0.636207]
[1643981732445,47.05224293,37632.0,37631.0,0.429007]
[1643981732845,47.05224293,37632.0,37631.0,0.179007]
[1643981733045,47.05224293,37632.0,37624.0,9.29e-06]
[1643981733046,0.129,37631.0,37624.0,9.29e-06]
[1643981733251,0.28421908,37630.0,37624.0,9.29e-06]
[1643981733443,0.28421908,37630.0,37620.0,0.26581]
[1643981733444,9.071e-05,37624.0,37621.0,0.1583]
[1643981733650,1.9,37621.0,37609.0,0.265698]
[1643981733848,1.9,37621.0,37606.0,0.26216405]
[1643981733849,0.04999999,37610.0,37608.0,0.05]
[1643981734049,0.04999999,37610.0,37607.0,0.00478]
[1643981734050,0.01,37609.0,37607.0,0.00478]
[1643981734247,0.04999999,37608.0,37607.0,0.00478]
[1643981734646,0.04999999,37608.0,37606.0,0.262]
[1643981735695,0.48421908,37617.0,37606.0,0.262]
[1643981735696,0.28421908,37616.0,37606.0,0.262]
[1643981735902,0.349062,37617.0,37606.0,0.262]
[1643981736094,0.15,37620.0,37606.0,0.262]
[1643981736095,0.44356649,37620.0,37606.0,0.262]
[1643981736293,0.2,37614.0,37606.0,0.262]
[1643981736495,0.349062,37613.0,37610.0,0.00093811]
[1643981737095,0.199062,37613.0,37610.0,0.00093811]
[1643981737298,0.00093765,37628.0,37610.0,0.0509381]
[1643981737299,9.071e-05,37624.0,37610.0,0.0509381]
[1643981737499,9.071e-05,37624.0,37611.0,0.150041]
[1643981737896,9.071e-05,37624.0,37610.0,0.00093811]
[1643981737897,1.95,37621.0,37612.0,0.10238]
[1643981738099,0.05,37619.0,37613.0,0.150025]
[1643981738297,0.349069,37618.0,37613.0,0.05]
[1643981738501,0.349069,37618.0,37615.0,0.10237]
[1643981738701,1.9,37621.0,37616.0,0.200012]
[1643981738896,1.9,37621.0,37616.0,0.05]
[1643981739096,1.9,37621.0,37617.0,0.150005]
[1643981739342,1.9,37621.0,37619.0,0.149995]
[1643981739543,1.9,37621.0,37619.0,0.10236]
[1643981739743,1.9,37621.0,37619.0,0.20236]
[1643981739943,1.9,37621.0,37618.0,8.74e-06]
[1643981739944,0.34906,37620.0,37618.0,8.74e-06]
[1643981740543,0.05,37619.0,37618.0,8.74e-06]
[1643981740943,0.34906,37620.0,37612.0,0.41942]
[1643981741149,2.1,37621.0,37613.0,0.05]
[1643981741350,2.1,37621.0,37614.0,0.26585]
[1643981741546,2.1,37621.0,37614.0,0.31585]
[1643981741744,0.34906,37619.0,37614.0,0.31585]
[1643981741944,0.34906,37619.0,37614.0,0.41585]
[1643981742146,1.9,37621.0,37614.0,0.41585]
[1643981742345,9.071e-05,37624.0,37615.0,0.08]
[1643981742646,9.071e-05,37624.0,37616.0,0.34584]
[1643981742845,9.071e-05,37624.0,37616.0,0.59938]
[1643981742846,0.20009071,37624.0,37616.0,0.59938]
[1643981743096,0.05,37619.0,37616.0,0.49938]
[1643981743293,9.071e-05,37624.0,37617.0,0.05]
[1643981743491,0.05009071,37624.0,37618.0,0.11583]
[1643981743695,0.05009071,37624.0,37612.0,0.1]
[1643981743696,1.9,37622.0,37612.0,0.1]
[1643981743896,1.9,37622.0,37606.0,0.262]
[1643981743897,2.6250957,37621.0,37606.0,0.262]
[1643981744091,2.5750957,37621.0,37612.0,0.02118017]
[1643981744291,2.24906,37621.0,37612.0,0.02118017]
[1643981744890,2.24906,37621.0,37615.0,0.00093723]
[1643981745290,1.95,37621.0,37615.0,7.23e-06]
[1643981745690,1.9,37621.0,37615.0,7.23e-06]
[1643981745890,1.9,37621.0,37612.0,0.02118017]
[1643981746300,1.9,37621.0,37607.0,0.27301106]
[1643981746695,1.9,37621.0,37606.0,0.262]
[1643981746942,1.9,37621.0,37606.0,0.53501106]
[1643981747241,1.9,37621.0,37607.0,0.05]
[1643981747441,1.9,37621.0,37608.0,0.27301106]
[1643981748041,1.9,37621.0,37607.0,0.15]
[1643981748242,1.9,37621.0,37608.0,0.27201106]
[1643981748444,0.01,37609.0,37608.0,0.27201106]
[1643981748645,0.005,37613.0,37608.0,0.30596434]
[1643981748846,0.005,37613.0,37608.0,0.40596434]
[1643981749040,0.005,37609.0,37608.0,0.40596434]
[1643981749443,9.071e-05,37624.0,37608.0,0.40596434]
[1643981749641,0.005,37612.0,37609.0,0.04499999]
[1643981750040,0.00093628,37620.0,37608.0,0.1]
[1643981750041,0.301,37610.0,37608.0,0.1]
[1643981750450,0.01699361,37590.0,37580.0,0.268898]
[1643981750701,1.63422752,37599.0,37589.0,0.52785527]
[1643981750702,1.03824566,37599.0,37589.0,0.52785527]
[1643981750902,0.132946,37594.0,37592.0,0.3612]
[1643981751198,0.132946,37594.0,37587.0,0.39280231]
[1643981751404,0.132946,37594.0,37590.0,0.4]
[1643981751597,0.132946,37594.0,37591.0,0.0489]
[1643981751598,0.398825,37594.0,37591.0,0.0489]
[1643981751797,0.398825,37594.0,37592.0,0.0489]
[1643981752096,0.398825,37594.0,37586.0,0.43244876]
[1643981752299,0.133946,37594.0,37589.0,0.4]
[1643981752501,0.199418,37596.0,37589.0,0.4]
[1643981752702,0.066473,37593.0,37592.0,0.33994298]
[1643981752902,0.04801295,37604.0,37593.0,1.65]
[1643981753100,0.09823082,37603.0,37593.0,1.99029337]
[1643981753401,0.09823082,37603.0,37597.0,0.01534817]
[1643981753402,0.132915,37600.0,37597.0,0.01534817]
[1643981753601,0.132915,37600.0,37595.0,0.62766]
[1643981753801,0.04077837,37599.0,37595.0,0.06661957]
[1643981754005,0.001,37596.0,37589.0,0.32719139]
[1643981754199,0.001,37596.0,37589.0,0.32235094]
[1643981754200,0.066473,37595.0,37589.0,0.32235094]
[1643981754448,0.051,37596.0,37590.0,1.34100327]
[1643981754449,0.10122,37596.0,37590.0,1.34100327]
[1643981754645,0.10122,37596.0,37590.0,1.32993327]
[1643981754848,0.03734668,37595.0,37591.0,0.0439]
[1643981755048,0.03734668,37595.0,37586.0,0.53249058]
[1643981755049,0.13856668,37595.0,37586.0,0.53249058]
[1643981755351,0.268915,37595.0,37586.0,0.56855014]
[1643981755547,0.268915,37595.0,37591.0,0.4]
[1643981755746,0.268915,37595.0,37587.0,0.00690386]
[1643981755747,0.10122,37594.0,37587.0,0.00690386]
[1643981755947,0.167695,37595.0,37587.0,0.08832889]
[1643981756147,0.199426,37593.0,37588.0,0.27477055]
[1643981756346,0.199426,37593.0,37588.0,0.28231093]
[1643981756554,0.199426,37593.0,37592.0,0.4]
[1643981756749,0.199426,37593.0,37592.0,0.67965597]
[1643981756950,0.132948,37595.0,37592.0,0.67965597]
[1643981757148,0.132948,37595.0,37591.0,0.06648]
[1643981757750,0.001,37592.0,37591.0,0.06648]
[1643981757950,0.17268623,37595.0,37592.0,0.201178]
[1643981758199,0.199426,37593.0,37592.0,0.201178]
[1643981758398,0.199426,37593.0,37592.0,0.250078]
[1643981758599,0.21477717,37598.0,37593.0,0.4]
[1643981758797,0.21477717,37598.0,37592.0,0.08279724]
[1643981758999,0.04199468,37596.0,37593.0,0.1997753]
[1643981759201,0.066475,37595.0,37592.0,0.08263767]
[1643981759397,0.066475,37595.0,37590.0,0.00015957]
[1643981759398,0.132948,37595.0,37590.0,0.00015957]
[1643981759600,0.132948,37595.0,37590.0,0.06647]
[1643981759800,0.132948,37595.0,37590.0,0.61355844]
[1643981759998,0.21317717,37598.0,37590.0,0.06662957]
[1643981760399,0.21317717,37598.0,37595.0,0.132939]
[1643981760598,0.05061712,37604.0,37593.0,0.00807849]
[1643981760802,0.05061712,37604.0,37594.0,1.04744443]
[1643981760803,0.05,37603.0,37594.0,1.04744443]
[1643981761002,0.04909078,37602.0,37597.0,0.01534817]
[1643981761202,0.04909078,37602.0,37597.0,0.11534817]
[1643981761203,0.01009078,37602.0,37597.0,0.11534817]
[1643981761398,0.05,37601.0,37595.0,0.6112]
[1643981761602,0.01534817,37598.0,37596.0,0.56622578]
[1643981761845,0.066452,37604.0,37596.0,0.56622578]
[1643981761846,0.21325012,37612.0,37596.0,0.11551338]
[1643981762045,1.09999999,37597.0,37596.0,0.066454]
[1643981762247,1.09999999,37597.0,37593.0,0.0798007]
[1643981762248,0.04999999,37597.0,37593.0,0.0798007]
[1643981762449,0.04999999,37597.0,37588.0,0.199427]
[1643981762450,0.04999999,37594.0,37592.0,0.00015939]
[1643981762643,0.0665,37592.0,37583.0,0.0194]
[1643981762842,0.03307346,37592.0,37584.0,0.0001594]
[1643981763042,0.03307346,37592.0,37583.0,0.23376654]
[1643981763241,0.116499,37590.0,37582.0,0.00022105]
[1643981763441,0.116499,37590.0,37582.0,0.00038047]
[1643981763442,0.05,37588.0,37582.0,0.00038047]
[1643981763644,0.1599046,37587.0,37580.0,0.0747463]
[1643981763842,0.03743407,37586.0,37581.0,0.00015943]
[1643981764043,0.00378781,37585.0,37579.0,0.23677065]
[1643981764245,0.066507,37584.0,37580.0,0.00015943]
[1643981764449,0.066507,37584.0,37578.0,0.00315943]
[1643981764644,0.066507,37584.0,37573.0,0.22825558]
[1643981764645,0.23273353,37583.0,37572.0,4.636884]
[1643981764846,0.23273353,37583.0,37576.0,0.00015945]
[1643981764847,0.05,37579.0,37576.0,0.00015945]
[1643981765045,0.05,37579.0,37573.0,0.00015945]
[1643981765246,0.199551,37577.0,37574.0,0.061512]
[1643981765610,0.0466576,37576.0,37574.0,0.061512]
[1643981765805,0.05,37577.0,37574.0,0.061512]
[1643981766005,0.05,37578.0,37574.0,0.056512]
[1643981766205,0.03810719,37576.0,37574.0,0.056512]
[1643981766406,0.23605606,37577.0,37572.0,4.84307345]
[1643981766606,0.07065779,37581.0,37572.0,4.636884]
[1643981766805,0.05,37577.0,37572.0,4.63704345]
[1643981767010,0.05,37577.0,37574.0,0.066512]
[1643981767011,0.03442762,37576.0,37574.0,0.066512]
[1643981767206,0.05,37577.0,37574.0,0.066512]
[1643981767408,0.116511,37577.0,37574.0,0.066512]
[1643981767606,0.04105266,37576.0,37574.0,0.066512]
[1643981767805,0.299551,37577.0,37574.0,0.066512]
[1643981768206,0.03418185,37576.0,37574.0,0.066512]
[1643981768408,0.03418185,37576.0,37574.0,0.056512]
[1643981768608,0.05,37577.0,37574.0,0.056512]
[1643981768806,0.04999999,37582.0,37576.0,0.04999999]
[1643981769006,0.04196899,37580.0,37574.0,0.05667145]
[1643981769207,0.133023,37576.0,37574.0,0.05667145]
[1643981769450,0.133023,37576.0,37574.0,0.34059658]
[1643981769651,0.133023,37576.0,37575.0,0.28408458]
[1643981769849,0.04999999,37582.0,37575.0,0.32662663]
[1643981770050,0.03953014,37580.0,37579.0,0.35055574]
[1643981770248,0.03953014,37580.0,37579.0,0.40055574]
[1643981770446,0.11649499,37582.0,37579.0,0.089894]
[1643981770647,3.9943953,37648.0,37580.0,0.28404374]
[1643981770848,0.05,37585.0,37580.0,0.28420319]
[1643981771248,0.332523,37583.0,37581.0,0.23479871]
[1643981771449,0.066495,37582.0,37581.0,0.23479871]
[1643981771648,0.332523,37583.0,37581.0,0.23479871]
[1643981771649,0.332523,37583.0,37581.0,0.04983075]
[1643981771861,0.332523,37583.0,37579.0,0.06665345]
[1643981771862,0.27553099,37582.0,37579.0,0.00015944]
[1643981772052,0.27553099,37582.0,37572.0,4.64160794]
[1643981772053,0.05099999,37580.0,37577.0,0.22733685]
[1643981772261,0.05099999,37580.0,37575.0,0.10015945]
[1643981772262,0.04999999,37578.0,37575.0,0.10015945]
[1643981772452,0.04999999,37578.0,37577.0,0.22740988]
[1643981772453,0.266099,37578.0,37577.0,0.22740988]
[1643981772652,0.266099,37578.0,37573.0,0.00015945]
[1643981772653,0.06653,37577.0,37573.0,0.3976671]
[1643981772853,0.06653,37577.0,37573.0,0.00015945]
[1643981773106,0.06653,37577.0,37572.0,3.83972145]
[1643981773306,0.06653,37577.0,37576.0,0.22749495]
[1643981773508,0.18306073,37577.0,37573.0,0.00015945]
[1643981773706,0.63306074,37577.0,37572.0,3.440444]
[1643981773907,0.63306074,37577.0,37572.0,3.04145047]
[1643981773908,0.56653,37577.0,37572.0,3.04145047]
[1643981774108,0.633039,37577.0,37572.0,3.43911757]
[1643981774306,0.633039,37577.0,37572.0,2.01088957]
[1643981774510,0.68303899,37577.0,37575.0,0.10194188]
[1643981774709,0.05,37578.0,37575.0,0.56612498]
[1643981774913,0.17786912,37579.0,37576.0,0.3976671]
[1643981775115,0.001,37580.0,37577.0,0.0489]
[1643981775312,0.001,37580.0,37578.0,0.0489]
[1643981775510,0.001,37580.0,37575.0,0.62065156]
[1643981775511,0.13299,37585.0,37581.0,0.65]
[1643981775714,0.116486,37585.0,37584.0,0.3981482]
[1643981775909,0.116486,37585.0,37584.0,0.0489]
[1643981776110,0.199484,37588.0,37584.0,0.0489]
[1643981776111,0.249484,37588.0,37585.0,0.066487]
[1643981776311,0.249484,37588.0,37587.0,0.39814051]
[1643981776511,0.29948399,37588.0,37587.0,0.0489]
[1643981776951,0.29948399,37588.0,37587.0,0.44729169]
[1643981777150,0.249484,37588.0,37587.0,0.44729169]
[1643981777351,0.249484,37588.0,37587.0,0.0489]
[1643981777959,0.02735293,37589.0,37587.0,0.0489]
[1643981778155,0.265957,37604.0,37587.0,0.0489]
[1643981778156,0.066474,37594.0,37587.0,0.0489]
[1643981778355,0.132951,37598.0,37587.0,0.0489]
[1643981778356,0.05,37598.0,37591.0,0.73227623]
[1643981778556,0.066462,37600.0,37598.0,0.07621537]
[1643981778755,0.066462,37600.0,37599.0,0.0489]
[1643981779053,0.11646199,37600.0,37599.0,0.0489]
[1643981779253,0.0548924,37600.0,37599.0,0.0489]
[1643981780057,0.00489241,37600.0,37599.0,0.39037447]
[1643981780257,0.05,37602.0,37599.0,0.62073477]
[1643981780458,0.05,37603.0,37601.0,0.01773498]
[1643981780710,0.42,37613.0,37602.0,0.62070621]
[1643981780711,0.05,37607.0,37602.0,0.62070621]
[1643981781005,0.05,37607.0,37605.0,0.34141478]
[1643981781205,0.03669547,37612.0,37605.0,0.34141478]
[1643981781206,0.03669547,37612.0,37606.0,0.3694115]
[1643981781406,0.03669547,37612.0,37610.0,0.40092327]
[1643981781606,0.03669547,37612.0,37611.0,0.09889999]
[1643981781806,0.03669547,37612.0,37611.0,0.33333103]
[1643981782006,0.93113279,37612.0,37611.0,0.0489]
[1643981782205,0.03769547,37612.0,37610.0,0.3940002]
[1643981782403,0.03769547,37612.0,37611.0,0.0489]
[1643981782608,0.03769547,37612.0,37610.0,0.3940002]
[1643981782808,0.03769547,37612.0,37611.0,0.0489]
[1643981784106,0.02769547,37612.0,37609.0,0.132883]
[1643981784356,0.02769547,37612.0,37610.0,0.0489]
[1643981785348,0.02769547,37612.0,37611.0,0.23138659]
[1643981785546,0.02769547,37612.0,37611.0,0.28028659]
[1643981786147,0.02769547,37612.0,37611.0,0.63028658]
[1643981786347,0.02769547,37612.0,37611.0,0.73028658]
[1643981786549,0.02769547,37612.0,37611.0,0.78028658]
[1643981786748,0.02769547,37612.0,37611.0,0.48028658]
[1643981786948,0.02769547,37612.0,37611.0,0.43028659]
[1643981787547,0.132882,37616.0,37612.0,0.09868027]
[1643981787753,0.132882,37616.0,37615.0,0.04999999]
[1643981787952,0.42,37622.0,37615.0,0.09889999]
[1643981788193,0.552862,37622.0,37617.0,0.066436]
[1643981788398,0.066429,37622.0,37621.0,0.3]
[1643981788594,0.41151971,37627.0,37621.0,0.3989]
[1643981788795,0.41151971,37627.0,37622.0,0.13158565]
[1643981788994,0.01,37629.0,37623.0,0.0489]
[1643981789193,0.01,37629.0,37628.0,0.09778129]
[1643981789394,0.01,37629.0,37628.0,0.21309929]
[1643981789395,0.142839,37629.0,37628.0,0.21309929]
[1643981789596,0.142839,37629.0,37628.0,0.115318]
[1643981789994,1.1902722,37629.0,37628.0,0.115318]
[1643981790197,1.092839,37629.0,37628.0,0.115318]
[1643981790499,1.092839,37629.0,37616.0,0.30901058]
[1643981790500,0.066435,37623.0,37616.0,0.30901058]
[1643981790697,0.15980959,37622.0,37617.0,0.0489]
[1643981790893,0.066435,37622.0,37619.0,0.3]
[1643981791092,0.066435,37622.0,37617.0,0.066436]
[1643981791093,0.701,37618.0,37617.0,0.066436]
[1643981791296,0.001,37618.0,37617.0,0.11643599]
[1643981791496,0.001,37618.0,37617.0,0.066436]
[1643981791695,0.067435,37618.0,37617.0,0.066436]
[1643981791959,0.067435,37618.0,37602.0,0.23367108]
[1643981791960,0.30056231,37612.0,37602.0,0.23367108]
[1643981792159,0.2534338,37610.0,37606.0,0.132918]
[1643981792356,0.34705041,37610.0,37598.0,1.04072721]
[1643981792654,0.34705041,37610.0,37603.0,0.366461]
[1643981792655,0.116462,37610.0,37603.0,0.366461]
[1643981792853,0.00093026,37606.0,37604.0,0.0489]
[1643981793058,0.00083724,37606.0,37604.0,0.0489]
[1643981793251,0.00083724,37606.0,37604.0,0.181827]
[1643981793851,0.47508215,37610.0,37604.0,0.181827]
[1643981794251,0.001,37605.0,37604.0,0.231827]
[1643981795053,0.001,37605.0,37604.0,0.181827]
[1643981795256,0.001,37605.0,37597.0,0.40641743]
[1643981795257,0.066475,37603.0,37597.0,0.0080772]
[1643981795707,0.116475,37603.0,37597.0,0.0080772]
[1643981795903,0.116475,37603.0,37598.0,0.066476]
[1643981796105,0.23780977,37601.0,37598.0,0.066476]
[1643981796305,0.132951,37600.0,37598.0,0.066476]
[1643981797007,0.132951,37600.0,37597.0,0.0080772]
[1643981797208,0.132951,37600.0,37591.0,0.00015947]
[1643981797405,0.116497,37599.0,37590.0,0.00315947]
[1643981797604,0.00093042,37597.0,37586.0,0.199439]
[1643981797805,0.14641291,37595.0,37589.0,0.00015525]
[1643981798005,0.17078972,37591.0,37586.0,0.19959425]
[1643981798208,0.05,37591.0,37587.0,0.3]
[1643981798407,0.132985,37592.0,37590.0,0.04999999]
[1643981798803,0.132985,37592.0,37590.0,0.2996587]
[1643981799205,0.066493,37591.0,37590.0,0.72266648]
[1643981799466,0.10371294,37592.0,37590.0,0.72266648]
[1643981799667,0.10371294,37592.0,37591.0,0.34113571]
[1643981799979,0.066477,37596.0,37591.0,0.60993338]
[1643981800167,0.7923,37602.0,37597.0,0.3]
[1643981800367,0.7923,37602.0,37601.0,0.04999999]
[1643981800566,0.066455,37603.0,37601.0,0.49858809]
[1643981800769,0.066455,37603.0,37601.0,0.0489]
[1643981800967,0.066455,37603.0,37601.0,0.1489]
[1643981801166,0.066455,37603.0,37601.0,0.1]
[1643981801665,0.066455,37603.0,37601.0,0.15]
[1643981801869,0.066455,37603.0,37602.0,0.14232849]
[1643981802068,0.066455,37603.0,37602.0,0.19122849]
[1643981802568,0.08867135,37604.0,37602.0,0.2576865]
[1643981802967,0.06897857,37604.0,37602.0,0.165358]
[1643981803197,0.06897857,37604.0,37602.0,0.115358]
[1643981803398,0.09147784,37603.0,37602.0,0.0489]
[1643981804195,0.14147784,37603.0,37602.0,0.0489]
[1643981804397,0.14147784,37603.0,37600.0,0.232946]
[1643981804398,0.10243463,37602.0,37600.0,0.232946]
[1643981804599,0.066491,37600.0,37593.0,0.05]
[1643981804798,0.38308853,37598.0,37591.0,0.05]
[1643981804996,0.38308853,37598.0,37590.0,0.18203425]
[1643981805198,0.38308853,37598.0,37590.0,0.13313425]
[1643981805199,0.30974839,37592.0,37590.0,0.13313425]
[1643981805397,0.132994,37593.0,37590.0,0.132979]
[1643981805597,0.05,37592.0,37591.0,0.04999999]
[1643981805797,0.116497,37592.0,37591.0,0.04999999]
[1643981805999,0.066497,37592.0,37591.0,0.04999999]
[1643981806496,0.066497,37592.0,37591.0,0.09889999]
[1643981806696,0.132994,37594.0,37591.0,0.09889999]
[1643981806947,0.09242297,37592.0,37591.0,0.0989]
[1643981807445,0.19947,37594.0,37591.0,0.0989]
[1643981807747,0.10413489,37592.0,37591.0,0.0489]
[1643981807947,0.05,37592.0,37591.0,0.0489]
[1643981808150,0.116497,37592.0,37591.0,0.0489]
[1643981808347,0.09234116,37591.0,37589.0,0.00015525]
[1643981808550,0.09234116,37591.0,37588.0,0.182982]
[1643981808551,0.0596799,37591.0,37588.0,0.182982]
[1643981808747,0.066497,37592.0,37588.0,0.132982]
[1643981808748,0.16012426,37592.0,37588.0,0.132982]
[1643981808947,0.09201857,37591.0,37588.0,0.132982]
[1643981809149,0.22499857,37591.0,37588.0,0.132982]
[1643981809348,0.18298,37591.0,37588.0,0.44199625]
[1643981809547,0.18298,37591.0,37589.0,0.12874706]
[1643981809746,0.18298,37591.0,37589.0,0.17874706]
[1643981809747,0.04999999,37591.0,37589.0,0.17874706]
[1643981809947,0.04999999,37591.0,37588.0,0.232982]
[1643981809948,0.09999999,37591.0,37588.0,0.232982]
[1643981810150,0.09999999,37591.0,37588.0,0.282982]
[1643981810798,0.19464995,37591.0,37588.0,0.37736933]
[1643981810999,0.09999999,37591.0,37589.0,0.17764706]
[1643981811404,0.09999999,37591.0,37589.0,0.115388]
[1643981811598,0.09999999,37591.0,37589.0,0.24413506]
[1643981811799,0.24999999,37591.0,37589.0,0.24413506]
[1643981811998,0.15,37591.0,37589.0,0.24413506]
[1643981812198,0.132986,37592.0,37589.0,0.24413506]
[1643981812399,0.132986,37592.0,37590.0,0.15164983]